[Event "Titled Tuesday Blitz April 26 Early 2022"]
[White "Nakamura, Hikaru"]
[Black "Esipenko, Andrey"]
[WhiteFideId "2016192"]
[BlackFideId "24175439"]
[WhiteElo "2850"]
[BlackElo "2617"]
[Result "1/2-1/2"]
[Round "07"]
[TimeControl "180+1"]
[Date "2022.04.26"]
[WhiteClock "0:00:11"]
[BlackClock "0:00:05"]

1. Nf3 {[%clk 0:03:00]}  d5 {[%clk 0:02:59]} 2. e3 {[%clk 0:03:00]}  Nf6 {[%clk 0:02:58]} 3. c4 {[%clk 0:03:00]}  e6 {[%clk 0:02:57]} 4. b3 {[%clk 0:03:00]}  Bd6 {[%clk 0:02:51]} 5. Bb2 {[%clk 0:03:00]}  O-O {[%clk 0:02:50]} 6. g3 {[%clk 0:03:00]}  b6 {[%clk 0:02:40]} 7. Bg2 {[%clk 0:03:00]}  Bb7 {[%clk 0:02:40]} 8. O-O {[%clk 0:03:00]}  Nbd7 {[%clk 0:02:41]} 9. d3 {[%clk 0:02:57]}  Qe7 {[%clk 0:02:34]} 10. Qe2 {[%clk 0:02:56]}  a6 {[%clk 0:02:25]} 11. Nbd2 {[%clk 0:02:45]}  Ba3 {[%clk 0:02:09]} 12. Bxa3 {[%clk 0:02:43]}  Qxa3 {[%clk 0:02:10]} 13. Rfc1 {[%clk 0:02:44]}  Rac8 {[%clk 0:02:07]} 14. cxd5 {[%clk 0:02:38]}  exd5 {[%clk 0:02:05]} 15. Bh3 {[%clk 0:02:35]}  Rfe8 {[%clk 0:02:01]} 16. Rc2 {[%clk 0:02:33]}  Qd6 {[%clk 0:01:59]} 17. Rac1 {[%clk 0:02:33]}  c5 {[%clk 0:01:59]} 18. d4 {[%clk 0:02:33]}  Rc7 {[%clk 0:01:59]} 19. dxc5 {[%clk 0:02:30]}  bxc5 {[%clk 0:01:59]} 20. Qd3 {[%clk 0:02:30]}  Nb6 {[%clk 0:01:34]} 21. Bg2 {[%clk 0:02:21]}  Rd8 {[%clk 0:01:28]} 22. Qc3 {[%clk 0:02:18]}  Nbd7 {[%clk 0:01:22]} 23. Qa5 {[%clk 0:02:17]}  g6 {[%clk 0:01:12]} 24. Rd1 {[%clk 0:02:02]}  Qb6 {[%clk 0:01:08]} 25. Qxb6 {[%clk 0:02:02]}  Nxb6 {[%clk 0:01:09]} 26. Rdc1 {[%clk 0:02:02]}  Nbd7 {[%clk 0:01:06]} 27. Ne1 {[%clk 0:01:59]}  a5 {[%clk 0:00:53]} 28. Nd3 {[%clk 0:01:55]}  Rdc8 {[%clk 0:00:54]} 29. Nb2 {[%clk 0:01:40]}  Nb6 {[%clk 0:00:46]} 30. Nb1 {[%clk 0:01:40]}  a4 {[%clk 0:00:37]} 31. bxa4 {[%clk 0:01:37]}  c4 {[%clk 0:00:35]} 32. Nc3 {[%clk 0:01:28]}  Ra8 {[%clk 0:00:35]} 33. Rd2 {[%clk 0:01:23]}  Ra5 {[%clk 0:00:35]} 34. Rd4 {[%clk 0:00:58]}  Kg7 {[%clk 0:00:26]} 35. Bf3 {[%clk 0:00:57]}  Rcc5 {[%clk 0:00:21]} 36. Rb1 {[%clk 0:00:54]}  Bc6 {[%clk 0:00:21]} 37. Bd1 {[%clk 0:00:54]}  h5 {[%clk 0:00:19]} 38. Bc2 {[%clk 0:00:54]}  Nbd7 {[%clk 0:00:17]} 39. Nbd1 {[%clk 0:00:49]}  Nf8 {[%clk 0:00:17]} 40. Nb5 {[%clk 0:00:37]}  Ne6 {[%clk 0:00:17]} 41. Rd2 {[%clk 0:00:38]}  Bxb5 {[%clk 0:00:17]} 42. axb5 {[%clk 0:00:38]}  Rcxb5 {[%clk 0:00:17]} 43. Rxb5 {[%clk 0:00:33]}  Rxb5 {[%clk 0:00:17]} 44. a4 {[%clk 0:00:34]}  Rb4 {[%clk 0:00:15]} 45. Nc3 {[%clk 0:00:34]}  Rb2 {[%clk 0:00:11]} 46. Kf1 {[%clk 0:00:33]}  d4 {[%clk 0:00:11]} 47. exd4 {[%clk 0:00:18]}  Nxd4 {[%clk 0:00:11]} 48. Rxd4 {[%clk 0:00:18]}  Rxc2 {[%clk 0:00:12]} 49. Ne2 {[%clk 0:00:17]}  Ng4 {[%clk 0:00:12]} 50. Ke1 {[%clk 0:00:17]}  Nxh2 {[%clk 0:00:10]} 51. Kd1 {[%clk 0:00:18]}  Ra2 {[%clk 0:00:10]} 52. Rxc4 {[%clk 0:00:19]}  Ng4 {[%clk 0:00:10]} 53. Ke1 {[%clk 0:00:19]}  Ne5 {[%clk 0:00:11]} 54. Rc3 {[%clk 0:00:15]}  Rxa4 {[%clk 0:00:11]} 55. Kf1 {[%clk 0:00:16]}  Ra1+ {[%clk 0:00:10]} 56. Kg2 {[%clk 0:00:16]}  Ra2 {[%clk 0:00:11]} 57. Kf1 {[%clk 0:00:16]}  Ng4 {[%clk 0:00:10]} 58. f3 {[%clk 0:00:13]}  Ne5 {[%clk 0:00:06]} 59. Ng1 {[%clk 0:00:11]}  g5 {[%clk 0:00:04]} 60. Nh3 {[%clk 0:00:11]}  f6 {[%clk 0:00:05]} 61. f4 {[%clk 0:00:09]}  g4 {[%clk 0:00:03]} 62. fxe5 {[%clk 0:00:07]}  gxh3 {[%clk 0:00:04]} 63. exf6+ {[%clk 0:00:08]}  Kxf6 {[%clk 0:00:04]} 64. Kg1 {[%clk 0:00:08]}  Kg5 {[%clk 0:00:04]} 65. Rc4 {[%clk 0:00:08]}  Rg2+ {[%clk 0:00:04]} 66. Kh1 {[%clk 0:00:09]}  Rxg3 {[%clk 0:00:04]} 67. Kh2 {[%clk 0:00:09]}  Rg4 {[%clk 0:00:05]} 68. Rc5+ {[%clk 0:00:09]}  Kh4 {[%clk 0:00:05]} 69. Rc3 {[%clk 0:00:09]}  Rg2+ {[%clk 0:00:05]} 70. Kh1 {[%clk 0:00:10]}  Rg4 {[%clk 0:00:05]} 71. Kh2 {[%clk 0:00:10]}  Rg2+ {[%clk 0:00:05]} 72. Kh1 {[%clk 0:00:10]}  Rg4 {[%clk 0:00:05]} 73. Kh2 {[%clk 0:00:11]} 1/2-1/2


[Site "https://www.chess.com"]

[Event "Titled Tuesday Blitz April 26 Early 2022"]
[White "Oganian, Miran"]
[Black "Belozerov, Andrei"]
[WhiteFideId "4122488"]
[BlackFideId "4120213"]
[WhiteElo "2357"]
[BlackElo "2320"]
[Result "1-0"]
[Round "07"]
[TimeControl "180+1"]
[Date "2022.04.26"]
[WhiteClock "0:00:38"]
[BlackClock "0:00:16"]

1. d4 {[%clk 0:02:59]}  d5 {[%clk 0:02:59]} 2. Nc3 {[%clk 0:03:00]}  Nf6 {[%clk 0:02:58]} 3. Bf4 {[%clk 0:03:00]}  c5 {[%clk 0:02:58]} 4. e3 {[%clk 0:03:00]}  cxd4 {[%clk 0:02:58]} 5. exd4 {[%clk 0:03:01]}  Bg4 {[%clk 0:02:59]} 6. f3 {[%clk 0:03:00]}  Bd7 {[%clk 0:02:59]} 7. Bd3 {[%clk 0:02:59]}  e6 {[%clk 0:02:47]} 8. Nge2 {[%clk 0:02:59]}  a6 {[%clk 0:02:32]} 9. O-O {[%clk 0:02:59]}  Nc6 {[%clk 0:02:32]} 10. a3 {[%clk 0:03:00]}  Be7 {[%clk 0:02:32]} 11. Kh1 {[%clk 0:02:59]}  O-O {[%clk 0:02:32]} 12. g4 {[%clk 0:02:58]}  Na5 {[%clk 0:02:29]} 13. Ng3 {[%clk 0:02:56]}  Nc4 {[%clk 0:02:29]} 14. Bc1 {[%clk 0:02:48]}  Bc6 {[%clk 0:02:28]} 15. g5 {[%clk 0:02:44]}  Nd7 {[%clk 0:02:27]} 16. f4 {[%clk 0:02:45]}  g6 {[%clk 0:02:21]} 17. h4 {[%clk 0:02:44]}  Bd6 {[%clk 0:01:42]} 18. h5 {[%clk 0:02:41]}  Qc7 {[%clk 0:01:39]} 19. Kg2 {[%clk 0:02:40]}  Rae8 {[%clk 0:01:37]} 20. Qg4 {[%clk 0:02:26]}  f5 {[%clk 0:01:34]} 21. Qh4 {[%clk 0:02:19]}  Re7 {[%clk 0:01:34]} 22. Rh1 {[%clk 0:02:18]}  Rg7 {[%clk 0:01:34]} 23. b3 {[%clk 0:02:09]}  b5 {[%clk 0:01:28]} 24. Kf1 {[%clk 0:01:52]}  Nxa3 {[%clk 0:01:26]} 25. Bxa3 {[%clk 0:01:49]}  b4 {[%clk 0:01:26]} 26. Bc1 {[%clk 0:01:43]}  bxc3 {[%clk 0:01:25]} 27. Rxa6 {[%clk 0:01:42]}  Kf7 {[%clk 0:01:18]} 28. Be3 {[%clk 0:01:36]}  Ra8 {[%clk 0:01:08]} 29. Rxa8 {[%clk 0:01:30]}  Bxa8 {[%clk 0:01:09]} 30. Kf2 {[%clk 0:01:24]}  Bc6 {[%clk 0:01:02]} 31. Ra1 {[%clk 0:01:23]}  Qb7 {[%clk 0:01:00]} 32. Ra6 {[%clk 0:01:21]}  Nb8 {[%clk 0:00:58]} 33. Ra1 {[%clk 0:01:14]}  Bb5 {[%clk 0:00:49]} 34. Bxb5 {[%clk 0:01:10]}  Qxb5 {[%clk 0:00:49]} 35. hxg6+ {[%clk 0:01:10]}  hxg6 {[%clk 0:00:49]} 36. Ra7+ {[%clk 0:01:10]}  Nd7 {[%clk 0:00:49]} 37. Qh8 {[%clk 0:01:09]}  Bf8 {[%clk 0:00:28]} 38. Bc1 {[%clk 0:00:56]}  Ke8 {[%clk 0:00:20]} 39. Ba3 {[%clk 0:00:52]}  Rf7 {[%clk 0:00:18]} 40. Ra8+ {[%clk 0:00:42]}  Nb8 {[%clk 0:00:18]} 41. Nh5 {[%clk 0:00:42]}  gxh5 {[%clk 0:00:17]} 42. g6 {[%clk 0:00:42]}  Qb7 {[%clk 0:00:16]} 43. gxf7+ {[%clk 0:00:41]}  Kd7 {[%clk 0:00:16]} 44. Qxf8 {[%clk 0:00:38]}  Qxa8 {[%clk 0:00:16]} 45. Qe8+ {[%clk 0:00:38]}  Kc7 {[%clk 0:00:17]} 46. f8=Q {[%clk 0:00:39]}  Qa7 {[%clk 0:00:16]} 47. Qfe7+ {[%clk 0:00:38]} 1-0


[Site "https://www.chess.com"]

[Event "Titled Tuesday Blitz April 26 Early 2022"]
[White "Onslow, Alfie"]
[Black "Zlatin, Alexander"]
[WhiteFideId "436976"]
[BlackFideId "2810549"]
[WhiteElo "1884"]
[BlackElo "2228"]
[Result "1-0"]
[Round "07"]
[TimeControl "180+1"]
[Date "2022.04.26"]
[WhiteClock "0:00:35"]
[BlackClock "0:00:02"]

1. e4 {[%clk 0:02:57]}  e5 {[%clk 0:02:46]} 2. Bc4 {[%clk 0:02:56]}  Nf6 {[%clk 0:02:45]} 3. d3 {[%clk 0:02:54]}  Nc6 {[%clk 0:02:45]} 4. Nc3 {[%clk 0:02:53]}  Bc5 {[%clk 0:02:45]} 5. f4 {[%clk 0:02:52]}  d6 {[%clk 0:02:45]} 6. f5 {[%clk 0:02:52]}  Na5 {[%clk 0:02:40]} 7. Nf3 {[%clk 0:02:48]}  c6 {[%clk 0:02:38]} 8. Bb3 {[%clk 0:02:43]}  Nxb3 {[%clk 0:02:34]} 9. axb3 {[%clk 0:02:44]}  a5 {[%clk 0:02:33]} 10. Qe2 {[%clk 0:02:41]}  b5 {[%clk 0:02:30]} 11. Be3 {[%clk 0:02:40]}  Qb6 {[%clk 0:02:28]} 12. Bxc5 {[%clk 0:02:29]}  Qxc5 {[%clk 0:02:29]} 13. Qf2 {[%clk 0:02:28]}  Qxf2+ {[%clk 0:02:26]} 14. Kxf2 {[%clk 0:02:29]}  b4 {[%clk 0:02:20]} 15. Ne2 {[%clk 0:02:20]}  c5 {[%clk 0:02:20]} 16. Ra2 {[%clk 0:02:18]}  g6 {[%clk 0:01:59]} 17. Ng3 {[%clk 0:02:09]}  Bd7 {[%clk 0:01:51]} 18. Rha1 {[%clk 0:02:07]}  a4 {[%clk 0:01:51]} 19. bxa4 {[%clk 0:02:08]}  O-O {[%clk 0:01:50]} 20. b3 {[%clk 0:02:06]}  Rfe8 {[%clk 0:01:34]} 21. fxg6 {[%clk 0:01:57]}  fxg6 {[%clk 0:01:32]} 22. h3 {[%clk 0:01:57]}  d5 {[%clk 0:01:20]} 23. Re1 {[%clk 0:01:57]}  Bc6 {[%clk 0:01:07]} 24. exd5 {[%clk 0:01:44]}  Nxd5 {[%clk 0:01:07]} 25. Nxe5 {[%clk 0:01:42]}  Nc3 {[%clk 0:01:01]} 26. Raa1 {[%clk 0:01:40]}  Bd5 {[%clk 0:00:59]} 27. Nc4 {[%clk 0:01:35]}  Rf8+ {[%clk 0:00:44]} 28. Kg1 {[%clk 0:01:35]}  Rae8 {[%clk 0:00:38]} 29. Rxe8 {[%clk 0:01:30]}  Rxe8 {[%clk 0:00:37]} 30. a5 {[%clk 0:01:30]}  h5 {[%clk 0:00:30]} 31. Nb6 {[%clk 0:01:27]}  Bc6 {[%clk 0:00:28]} 32. a6 {[%clk 0:01:20]}  Rb8 {[%clk 0:00:21]} 33. Nc4 {[%clk 0:01:02]}  h4 {[%clk 0:00:20]} 34. a7 {[%clk 0:00:56]}  Rf8 {[%clk 0:00:17]} 35. Ne4 {[%clk 0:00:52]}  Nxe4 {[%clk 0:00:11]} 36. dxe4 {[%clk 0:00:53]}  Bxe4 {[%clk 0:00:11]} 37. Nb6 {[%clk 0:00:48]}  Ba8 {[%clk 0:00:11]} 38. Nxa8 {[%clk 0:00:47]}  Rxa8 {[%clk 0:00:11]} 39. Ra6 {[%clk 0:00:45]}  Kg7 {[%clk 0:00:11]} 40. Kf2 {[%clk 0:00:45]}  Kf7 {[%clk 0:00:11]} 41. Kf3 {[%clk 0:00:45]}  Ke7 {[%clk 0:00:10]} 42. Kg4 {[%clk 0:00:45]}  Kd7 {[%clk 0:00:10]} 43. Kxh4 {[%clk 0:00:45]}  Kc7 {[%clk 0:00:11]} 44. Rxg6 {[%clk 0:00:45]}  Rh8+ {[%clk 0:00:08]} 45. Kg4 {[%clk 0:00:43]}  Kb7 {[%clk 0:00:09]} 46. Rg7+ {[%clk 0:00:44]}  Ka8 {[%clk 0:00:09]} 47. Rc7 {[%clk 0:00:42]}  Rg8+ {[%clk 0:00:09]} 48. Kf3 {[%clk 0:00:43]}  Rf8+ {[%clk 0:00:09]} 49. Ke3 {[%clk 0:00:43]}  Rg8 {[%clk 0:00:09]} 50. g4 {[%clk 0:00:42]}  Rh8 {[%clk 0:00:09]} 51. Rxc5 {[%clk 0:00:40]}  Rxh3+ {[%clk 0:00:09]} 52. Kf4 {[%clk 0:00:39]}  Kxa7 {[%clk 0:00:08]} 53. Rc4 {[%clk 0:00:39]}  Rh2 {[%clk 0:00:09]} 54. Rxb4 {[%clk 0:00:38]}  Rxc2 {[%clk 0:00:09]} 55. g5 {[%clk 0:00:39]}  Rf2+ {[%clk 0:00:07]} 56. Ke5 {[%clk 0:00:39]}  Ka6 {[%clk 0:00:08]} 57. g6 {[%clk 0:00:38]}  Ka5 {[%clk 0:00:08]} 58. Rb8 {[%clk 0:00:38]}  Rg2 {[%clk 0:00:08]} 59. Kf6 {[%clk 0:00:38]}  Ka6 {[%clk 0:00:08]} 60. g7 {[%clk 0:00:38]}  Rf2+ {[%clk 0:00:08]} 61. Ke7 {[%clk 0:00:39]}  Re2+ {[%clk 0:00:07]} 62. Kf8 {[%clk 0:00:39]}  Rf2+ {[%clk 0:00:08]} 63. Kg8 {[%clk 0:00:39]}  Ka7 {[%clk 0:00:07]} 64. Rf8 {[%clk 0:00:38]}  Rh2 {[%clk 0:00:07]} 65. Rf7+ {[%clk 0:00:38]}  Kb8 {[%clk 0:00:06]} 66. Kf8 {[%clk 0:00:39]}  Kc8 {[%clk 0:00:02]} 67. g8=Q {[%clk 0:00:40]}  Rd2 {[%clk 0:00:02]} 68. Ke7+ {[%clk 0:00:35]}  Kc7 {[%clk 0:00:02]} 69. Ke6+ {[%clk 0:00:35]} 1-0


[Site "https://www.chess.com"]

[Event "Titled Tuesday Blitz April 26 Early 2022"]
[White "Petrovskyi, Vadym"]
[Black "Xiong, Jeffery"]
[WhiteFideId "14165210"]
[BlackFideId "2047640"]
[WhiteElo "2400"]
[BlackElo "2727"]
[Result "0-1"]
[Round "07"]
[TimeControl "180+1"]
[Date "2022.04.26"]
[WhiteClock "0:00:37"]
[BlackClock "0:00:18"]

1. e4 {[%clk 0:03:00]}  g6 {[%clk 0:03:00]} 2. d4 {[%clk 0:03:00]}  Bg7 {[%clk 0:03:00]} 3. Nc3 {[%clk 0:03:01]}  a6 {[%clk 0:03:01]} 4. f4 {[%clk 0:03:00]}  b5 {[%clk 0:03:01]} 5. Nf3 {[%clk 0:03:00]}  d6 {[%clk 0:03:01]} 6. Bd3 {[%clk 0:03:01]}  Nd7 {[%clk 0:03:02]} 7. Be3 {[%clk 0:03:01]}  Bb7 {[%clk 0:02:59]} 8. e5 {[%clk 0:03:01]}  Nh6 {[%clk 0:02:49]} 9. Ne4 {[%clk 0:03:01]}  c5 {[%clk 0:02:44]} 10. c3 {[%clk 0:02:59]}  O-O {[%clk 0:02:42]} 11. Qd2 {[%clk 0:02:38]}  cxd4 {[%clk 0:02:33]} 12. cxd4 {[%clk 0:02:37]}  Nb6 {[%clk 0:02:34]} 13. b3 {[%clk 0:02:25]}  Nd5 {[%clk 0:02:32]} 14. Bf2 {[%clk 0:02:23]}  dxe5 {[%clk 0:02:26]} 15. fxe5 {[%clk 0:02:22]}  Ng4 {[%clk 0:02:25]} 16. O-O {[%clk 0:02:12]}  Bh6 {[%clk 0:02:21]} 17. Qb2 {[%clk 0:02:05]}  Nf4 {[%clk 0:01:55]} 18. Bb1 {[%clk 0:02:04]}  Rc8 {[%clk 0:01:47]} 19. Bg3 {[%clk 0:01:49]}  Ne6 {[%clk 0:01:47]} 20. Rd1 {[%clk 0:01:35]}  Ne3 {[%clk 0:01:18]} 21. Re1 {[%clk 0:01:31]}  Qd7 {[%clk 0:01:12]} 22. h3 {[%clk 0:01:18]}  Rfd8 {[%clk 0:01:10]} 23. Bf2 {[%clk 0:01:17]}  Nxg2 {[%clk 0:01:10]} 24. Kxg2 {[%clk 0:01:01]}  Nf4+ {[%clk 0:01:10]} 25. Kg1 {[%clk 0:01:01]}  Qxh3 {[%clk 0:01:11]} 26. Nh4 {[%clk 0:00:59]}  g5 {[%clk 0:01:02]} 27. Re3 {[%clk 0:00:56]}  Qg4+ {[%clk 0:01:02]} 28. Rg3 {[%clk 0:00:55]}  Ne2+ {[%clk 0:01:02]} 29. Qxe2 {[%clk 0:00:54]}  Qxe2 {[%clk 0:01:02]} 30. Bd3 {[%clk 0:00:52]}  Qb2 {[%clk 0:00:39]} 31. Re1 {[%clk 0:00:48]}  Rxd4 {[%clk 0:00:27]} 32. Nf5 {[%clk 0:00:48]}  Rxd3 {[%clk 0:00:22]} 33. Rxd3 {[%clk 0:00:48]}  Bxe4 {[%clk 0:00:21]} 34. Rxe4 {[%clk 0:00:47]}  Qb1+ {[%clk 0:00:21]} 35. Kg2 {[%clk 0:00:46]}  Qxd3 {[%clk 0:00:21]} 36. Nxh6+ {[%clk 0:00:42]}  Kf8 {[%clk 0:00:20]} 37. Rg4 {[%clk 0:00:40]}  Rc2 {[%clk 0:00:18]} 38. Rxg5 {[%clk 0:00:39]}  Rxf2+ {[%clk 0:00:18]} 39. Kg1 {[%clk 0:00:37]}  Qf1# {[%clk 0:00:18]} 0-1


[Site "https://www.chess.com"]

[Event "Titled Tuesday Blitz April 26 Early 2022"]
[White "Pham, Tran Gia Phuc"]
[Black "Omariev, Maksim"]
[WhiteFideId "12415669"]
[BlackFideId "4193423"]
[WhiteElo "1789"]
[BlackElo "2487"]
[Result "0-1"]
[Round "07"]
[TimeControl "180+1"]
[Date "2022.04.26"]
[WhiteClock "0:00:02"]
[BlackClock "0:00:45"]

1. e4 {[%clk 0:02:51]}  h5 {[%clk 0:02:54]} 2. d4 {[%clk 0:02:49]}  h4 {[%clk 0:02:54]} 3. f4 {[%clk 0:02:47]}  h3 {[%clk 0:02:54]} 4. g3 {[%clk 0:02:46]}  d5 {[%clk 0:02:54]} 5. e5 {[%clk 0:02:43]}  Bf5 {[%clk 0:02:50]} 6. Bd3 {[%clk 0:02:41]}  Nh6 {[%clk 0:02:46]} 7. Nf3 {[%clk 0:02:38]}  e6 {[%clk 0:02:46]} 8. Bxf5 {[%clk 0:02:36]}  Nxf5 {[%clk 0:02:47]} 9. g4 {[%clk 0:02:36]}  Nh4 {[%clk 0:02:45]} 10. O-O {[%clk 0:02:35]}  c5 {[%clk 0:02:41]} 11. c3 {[%clk 0:02:33]}  Nc6 {[%clk 0:02:41]} 12. Be3 {[%clk 0:02:31]}  Qb6 {[%clk 0:02:39]} 13. Nxh4 {[%clk 0:02:19]}  Rxh4 {[%clk 0:02:40]} 14. Rf2 {[%clk 0:02:04]}  O-O-O {[%clk 0:02:07]} 15. Na3 {[%clk 0:01:45]}  Kb8 {[%clk 0:02:05]} 16. Kh1 {[%clk 0:01:37]}  Be7 {[%clk 0:02:03]} 17. Rb1 {[%clk 0:01:17]}  f6 {[%clk 0:02:03]} 18. Nc2 {[%clk 0:01:16]}  g5 {[%clk 0:01:53]} 19. exf6 {[%clk 0:01:14]}  Bxf6 {[%clk 0:01:54]} 20. fxg5 {[%clk 0:01:12]}  Be7 {[%clk 0:01:49]} 21. Qf3 {[%clk 0:01:07]}  e5 {[%clk 0:01:46]} 22. Qg3 {[%clk 0:00:58]}  Rhh8 {[%clk 0:01:46]} 23. dxe5 {[%clk 0:00:56]}  d4 {[%clk 0:01:46]} 24. cxd4 {[%clk 0:00:51]}  cxd4 {[%clk 0:01:47]} 25. Bf4 {[%clk 0:00:50]}  d3 {[%clk 0:01:46]} 26. e6+ {[%clk 0:00:47]}  Ka8 {[%clk 0:01:46]} 27. Ne3 {[%clk 0:00:44]}  Nd4 {[%clk 0:01:44]} 28. Rc1 {[%clk 0:00:24]}  Ne2 {[%clk 0:01:42]} 29. Rxe2 {[%clk 0:00:22]}  dxe2 {[%clk 0:01:43]} 30. Bc7 {[%clk 0:00:22]}  Qxb2 {[%clk 0:01:19]} 31. Re1 {[%clk 0:00:14]}  Rd3 {[%clk 0:01:06]} 32. Be5 {[%clk 0:00:10]}  Qd2 {[%clk 0:00:59]} 33. Bf4 {[%clk 0:00:03]}  Bc5 {[%clk 0:00:53]} 34. g6 {[%clk 0:00:02]}  Bxe3 {[%clk 0:00:52]} 35. g7 {[%clk 0:00:02]}  Rg8 {[%clk 0:00:52]} 36. e7 {[%clk 0:00:02]}  Bxf4 {[%clk 0:00:51]} 37. Qf2 {[%clk 0:00:02]}  Qxe1+ {[%clk 0:00:45]} 0-1


[Site "https://www.chess.com"]

[Event "Titled Tuesday Blitz April 26 Early 2022"]
[White "Pires, Marcos Vinicius Torsani"]
[Black "Laohawirapap, Prin"]
[WhiteFideId "2118939"]
[BlackFideId "6205003"]
[WhiteElo "2273"]
[BlackElo "1832"]
[Result "1-0"]
[Round "07"]
[TimeControl "180+1"]
[Date "2022.04.26"]
[WhiteClock "0:00:16"]
[BlackClock "0:00:03"]

1. d4 {[%clk 0:03:00]}  Nf6 {[%clk 0:02:59]} 2. Bf4 {[%clk 0:03:00]}  g6 {[%clk 0:02:59]} 3. e3 {[%clk 0:03:00]}  Bg7 {[%clk 0:03:00]} 4. Nf3 {[%clk 0:03:00]}  O-O {[%clk 0:02:57]} 5. Be2 {[%clk 0:03:00]}  d6 {[%clk 0:02:56]} 6. h3 {[%clk 0:03:00]}  Nbd7 {[%clk 0:02:57]} 7. O-O {[%clk 0:03:00]}  b6 {[%clk 0:02:57]} 8. c4 {[%clk 0:03:00]}  Bb7 {[%clk 0:02:57]} 9. Nc3 {[%clk 0:03:01]}  Ne4 {[%clk 0:02:57]} 10. Nxe4 {[%clk 0:03:01]}  Bxe4 {[%clk 0:02:57]} 11. Nd2 {[%clk 0:03:02]}  Bb7 {[%clk 0:02:58]} 12. Bf3 {[%clk 0:03:03]}  Qc8 {[%clk 0:02:58]} 13. Bxb7 {[%clk 0:03:03]}  Qxb7 {[%clk 0:02:59]} 14. Qf3 {[%clk 0:03:03]}  Qxf3 {[%clk 0:02:58]} 15. Nxf3 {[%clk 0:03:04]}  e5 {[%clk 0:02:59]} 16. dxe5 {[%clk 0:03:03]}  dxe5 {[%clk 0:03:00]} 17. Bg3 {[%clk 0:03:03]}  Rfe8 {[%clk 0:02:50]} 18. Rad1 {[%clk 0:02:58]}  Rad8 {[%clk 0:02:34]} 19. Rd5 {[%clk 0:02:47]}  Nc5 {[%clk 0:02:25]} 20. Rxd8 {[%clk 0:02:39]}  Rxd8 {[%clk 0:02:26]} 21. Bxe5 {[%clk 0:02:39]}  Bxe5 {[%clk 0:02:14]} 22. Nxe5 {[%clk 0:02:40]}  Rd2 {[%clk 0:02:14]} 23. b4 {[%clk 0:02:41]}  Ne4 {[%clk 0:02:08]} 24. a3 {[%clk 0:02:13]}  Ra2 {[%clk 0:02:07]} 25. f3 {[%clk 0:02:07]}  Nd6 {[%clk 0:01:55]} 26. c5 {[%clk 0:02:02]}  bxc5 {[%clk 0:01:56]} 27. bxc5 {[%clk 0:02:02]}  Nf5 {[%clk 0:01:57]} 28. Ng4 {[%clk 0:01:46]}  h5 {[%clk 0:01:53]} 29. Nf6+ {[%clk 0:01:39]}  Kg7 {[%clk 0:01:47]} 30. Nd5 {[%clk 0:01:39]}  c6 {[%clk 0:01:45]} 31. e4 {[%clk 0:01:39]}  Ng3 {[%clk 0:01:37]} 32. Nb4 {[%clk 0:01:39]}  Rxa3 {[%clk 0:01:29]} 33. Rd1 {[%clk 0:01:39]}  Rc3 {[%clk 0:01:06]} 34. Nxc6 {[%clk 0:01:39]}  Rxc5 {[%clk 0:01:01]} 35. Nxa7 {[%clk 0:01:38]}  h4 {[%clk 0:00:57]} 36. e5 {[%clk 0:01:23]}  Rxe5 {[%clk 0:00:51]} 37. Nc6 {[%clk 0:01:23]}  Rc5 {[%clk 0:00:47]} 38. Nb4 {[%clk 0:01:14]}  Rb5 {[%clk 0:00:35]} 39. Nd5 {[%clk 0:01:11]}  Rb2 {[%clk 0:00:33]} 40. Nf4 {[%clk 0:01:02]}  g5 {[%clk 0:00:30]} 41. Nd3 {[%clk 0:01:01]}  Rc2 {[%clk 0:00:29]} 42. Nf2 {[%clk 0:00:58]}  Ne2+ {[%clk 0:00:24]} 43. Kf1 {[%clk 0:00:59]}  Ng3+ {[%clk 0:00:18]} 44. Kg1 {[%clk 0:00:57]}  Kg6 {[%clk 0:00:18]} 45. Ne4 {[%clk 0:00:53]}  Nxe4 {[%clk 0:00:17]} 46. fxe4 {[%clk 0:00:54]}  Re2 {[%clk 0:00:17]} 47. Rd6+ {[%clk 0:00:51]}  f6 {[%clk 0:00:14]} 48. Re6 {[%clk 0:00:51]}  Kf7 {[%clk 0:00:14]} 49. Ra6 {[%clk 0:00:49]}  Rxe4 {[%clk 0:00:14]} 50. Kf2 {[%clk 0:00:49]}  Rb4 {[%clk 0:00:12]} 51. Rc6 {[%clk 0:00:49]}  Rb2+ {[%clk 0:00:12]} 52. Kf3 {[%clk 0:00:48]}  Kg6 {[%clk 0:00:12]} 53. Rc5 {[%clk 0:00:48]}  Kh5 {[%clk 0:00:10]} 54. Rf5 {[%clk 0:00:44]}  Rb1 {[%clk 0:00:08]} 55. Kf2 {[%clk 0:00:43]}  Kg6 {[%clk 0:00:08]} 56. Ra5 {[%clk 0:00:43]}  Rb4 {[%clk 0:00:07]} 57. Rc5 {[%clk 0:00:43]}  Rf4+ {[%clk 0:00:08]} 58. Ke2 {[%clk 0:00:42]}  Rf5 {[%clk 0:00:06]} 59. Rc8 {[%clk 0:00:41]}  Re5+ {[%clk 0:00:06]} 60. Kf3 {[%clk 0:00:41]}  Kf5 {[%clk 0:00:07]} 61. Rf8 {[%clk 0:00:40]}  Ra5 {[%clk 0:00:07]} 62. Kf2 {[%clk 0:00:40]}  Ra2+ {[%clk 0:00:06]} 63. Kf3 {[%clk 0:00:40]}  Ra3+ {[%clk 0:00:06]} 64. Kf2 {[%clk 0:00:40]}  Ra6 {[%clk 0:00:07]} 65. Rf7 {[%clk 0:00:40]}  Kf4 {[%clk 0:00:06]} 66. Rb7 {[%clk 0:00:26]}  Ra2+ {[%clk 0:00:06]} 67. Kf1 {[%clk 0:00:26]}  Ra4 {[%clk 0:00:02]} 68. Rb3 {[%clk 0:00:24]}  f5 {[%clk 0:00:03]} 69. Kf2 {[%clk 0:00:24]}  Ra2+ {[%clk 0:00:03]} 70. Kf1 {[%clk 0:00:25]}  Rc2 {[%clk 0:00:03]} 71. Ra3 {[%clk 0:00:22]}  Rd2 {[%clk 0:00:03]} 72. Ra4+ {[%clk 0:00:23]}  Rd4 {[%clk 0:00:04]} 73. Ra3 {[%clk 0:00:23]}  Re4 {[%clk 0:00:04]} 74. Rb3 {[%clk 0:00:24]}  Re3 {[%clk 0:00:05]} 75. Rb4+ {[%clk 0:00:24]}  Kg3 {[%clk 0:00:05]} 76. Rb1 {[%clk 0:00:24]}  Ra3 {[%clk 0:00:05]} 77. Kg1 {[%clk 0:00:24]}  f4 {[%clk 0:00:05]} 78. Rf1 {[%clk 0:00:24]}  f3 {[%clk 0:00:06]} 79. gxf3 {[%clk 0:00:21]}  Rxf3 {[%clk 0:00:07]} 80. Rc1 {[%clk 0:00:17]}  Kxh3 {[%clk 0:00:07]} 81. Kh1 {[%clk 0:00:18]}  g4 {[%clk 0:00:06]} 82. Rg1 {[%clk 0:00:18]}  g3 {[%clk 0:00:06]} 83. Re1 {[%clk 0:00:17]}  Ra3 {[%clk 0:00:06]} 84. Rb1 {[%clk 0:00:17]}  Rf3 {[%clk 0:00:05]} 85. Rg1 {[%clk 0:00:17]}  Rf2 {[%clk 0:00:04]} 86. Ra1 {[%clk 0:00:16]}  Ra2 {[%clk 0:00:02]} 87. Rxa2 {[%clk 0:00:16]}  Kg4 {[%clk 0:00:02]} 88. Ra4+ {[%clk 0:00:16]}  Kh3 {[%clk 0:00:03]} 89. Ra3 {[%clk 0:00:16]}  Kg4 {[%clk 0:00:02]} 90. Kg1 {[%clk 0:00:16]}  Kh3 {[%clk 0:00:03]} 91. Ra4 {[%clk 0:00:16]}  g2 {[%clk 0:00:02]} 92. Ra3+ {[%clk 0:00:16]}  Kg4 {[%clk 0:00:03]} 93. Kxg2 {[%clk 0:00:16]} 1-0


[Site "https://www.chess.com"]